{"text_format":"3","workbook":"xlsx","n_sheets":2,"sheets":["Журнал проектів","Настроювання"],"not_rendered":{"defined_names":5},"read":"whole","date_system":"1900"}

{"sheet":"Журнал проектів","index":0,"n_rows":13,"n_cols":15,"rows_kept":13}
[null,"Журнал проектів"]
[null,null,"Пороговий відсоток перевищення або недостатності: ",{"v":0.25,"d":"25%"}]
[]
[null,"Проект","Категорія","Виконавець","Орієнтовний\nпочаток","Орієнтовне \nзавершення","Орієнтовні трудовитрати \n(у годинах)","Орієнтовна тривалість (у днях)","Фактичний \nпочаток","Фактичне\nзавершення","Піктограма позначки для перевищених або недостатніх фактичних трудовитрат (у годинах)","Фактичні трудовитрати (у годинах)","Піктограма позначки для перевищеної або недостатньої фактичної тривалості (у днях)","Фактична тривалість (у днях)","Нотатки"]
[null,"Проект 1","Категорія 1","Працівник 1",{"$f":"TODAY()-65","v":"2016-08-17"},{"$f":"TODAY()-5","v":"2016-10-16"},210,{"$f":"IF(COUNTA('Журнал проектів'!$E5,'Журнал проектів'!$F5)<>2,\"\",DAYS360('Журнал проектів'!$E5,'Журнал проектів'!$F5,FALSE))","v":59},{"$f":"TODAY()-65","v":"2016-08-17"},{"$f":"TODAY()","v":"2016-10-21"},{"$f":"IFERROR(IF(ЖурналПроектів[Фактичні трудовитрати (у годинах)]=0,\"\",IF(ABS((ЖурналПроектів[[#This Row],[Фактичні трудовитрати (у годинах)]]-ЖурналПроектів[[#This Row],[Орієнтовні трудовитрати \n(у годинах)]])/ЖурналПроектів[[#This Row],[Орієнтовні трудовитрати \n(у годинах)]])>ВідсотокВиконання,1,0)),\"\")","v":1},300,{"$f":"IFERROR(IF(ЖурналПроектів[Фактична тривалість (у днях)]=0,\"\",IF(ABS((ЖурналПроектів[[#This Row],[Фактична тривалість (у днях)]]-ЖурналПроектів[[#This Row],[Орієнтовна тривалість (у днях)]])/ЖурналПроектів[[#This Row],[Орієнтовна тривалість (у днях)]])>ВідсотокВиконання,1,0)),\"\")","v":0},{"$f":"IF(COUNTA('Журнал проектів'!$I5,'Журнал проектів'!$J5)<>2,\"\",DAYS360('Журнал проектів'!$I5,'Журнал проектів'!$J5,FALSE))","v":64}]
[null,"Проект 2","Категорія 2","Працівник 4",{"$f":"TODAY()-41","v":"2016-09-10"},{"$f":"TODAY()-10","v":"2016-10-11"},400,{"$f":"IF(COUNTA('Журнал проектів'!$E6,'Журнал проектів'!$F6)<>2,\"\",DAYS360('Журнал проектів'!$E6,'Журнал проектів'!$F6,FALSE))","v":31},{"$f":"TODAY()-41","v":"2016-09-10"},{"$f":"TODAY()-7","v":"2016-10-14"},{"$f":"IFERROR(IF(ЖурналПроектів[Фактичні трудовитрати (у годинах)]=0,\"\",IF(ABS((ЖурналПроектів[[#This Row],[Фактичні трудовитрати (у годинах)]]-ЖурналПроектів[[#This Row],[Орієнтовні трудовитрати \n(у годинах)]])/ЖурналПроектів[[#This Row],[Орієнтовні трудовитрати \n(у годинах)]])>ВідсотокВиконання,1,0)),\"\")","v":0},390,{"$f":"IFERROR(IF(ЖурналПроектів[Фактична тривалість (у днях)]=0,\"\",IF(ABS((ЖурналПроектів[[#This Row],[Фактична тривалість (у днях)]]-ЖурналПроектів[[#This Row],[Орієнтовна тривалість (у днях)]])/ЖурналПроектів[[#This Row],[Орієнтовна тривалість (у днях)]])>ВідсотокВиконання,1,0)),\"\")","v":0},{"$f":"IF(COUNTA('Журнал проектів'!$I6,'Журнал проектів'!$J6)<>2,\"\",DAYS360('Журнал проектів'!$I6,'Журнал проектів'!$J6,FALSE))","v":34}]
[null,"Проект 3","Категорія 1","Працівник 2",{"$f":"TODAY()-100","v":"2016-07-13"},{"$f":"TODAY()-40","v":"2016-09-11"},500,{"$f":"IF(COUNTA('Журнал проектів'!$E7,'Журнал проектів'!$F7)<>2,\"\",DAYS360('Журнал проектів'!$E7,'Журнал проектів'!$F7,FALSE))","v":58},{"$f":"TODAY()-100","v":"2016-07-13"},{"$f":"TODAY()-27","v":"2016-09-24"},{"$f":"IFERROR(IF(ЖурналПроектів[Фактичні трудовитрати (у годинах)]=0,\"\",IF(ABS((ЖурналПроектів[[#This Row],[Фактичні трудовитрати (у годинах)]]-ЖурналПроектів[[#This Row],[Орієнтовні трудовитрати \n(у годинах)]])/ЖурналПроектів[[#This Row],[Орієнтовні трудовитрати \n(у годинах)]])>ВідсотокВиконання,1,0)),\"\")","v":0},500,{"$f":"IFERROR(IF(ЖурналПроектів[Фактична тривалість (у днях)]=0,\"\",IF(ABS((ЖурналПроектів[[#This Row],[Фактична тривалість (у днях)]]-ЖурналПроектів[[#This Row],[Орієнтовна тривалість (у днях)]])/ЖурналПроектів[[#This Row],[Орієнтовна тривалість (у днях)]])>ВідсотокВиконання,1,0)),\"\")","v":0},{"$f":"IF(COUNTA('Журнал проектів'!$I7,'Журнал проектів'!$J7)<>2,\"\",DAYS360('Журнал проектів'!$I7,'Журнал проектів'!$J7,FALSE))","v":71}]
[null,"Проект 4","Категорія 2","Працівник 3",{"$f":"TODAY()-90","v":"2016-07-23"},{"$f":"TODAY()-80","v":"2016-08-02"},250,{"$f":"IF(COUNTA('Журнал проектів'!$E8,'Журнал проектів'!$F8)<>2,\"\",DAYS360('Журнал проектів'!$E8,'Журнал проектів'!$F8,FALSE))","v":9},{"$f":"TODAY()-90","v":"2016-07-23"},{"$f":"TODAY()-71","v":"2016-08-11"},{"$f":"IFERROR(IF(ЖурналПроектів[Фактичні трудовитрати (у годинах)]=0,\"\",IF(ABS((ЖурналПроектів[[#This Row],[Фактичні трудовитрати (у годинах)]]-ЖурналПроектів[[#This Row],[Орієнтовні трудовитрати \n(у годинах)]])/ЖурналПроектів[[#This Row],[Орієнтовні трудовитрати \n(у годинах)]])>ВідсотокВиконання,1,0)),\"\")","v":0},276,{"$f":"IFERROR(IF(ЖурналПроектів[Фактична тривалість (у днях)]=0,\"\",IF(ABS((ЖурналПроектів[[#This Row],[Фактична тривалість (у днях)]]-ЖурналПроектів[[#This Row],[Орієнтовна тривалість (у днях)]])/ЖурналПроектів[[#This Row],[Орієнтовна тривалість (у днях)]])>ВідсотокВиконання,1,0)),\"\")","v":1},{"$f":"IF(COUNTA('Журнал проектів'!$I8,'Журнал проектів'!$J8)<>2,\"\",DAYS360('Журнал проектів'!$I8,'Журнал проектів'!$J8,FALSE))","v":18}]
[null,"Проект 5","Категорія 3","Працівник 2",{"$f":"TODAY()-90","v":"2016-07-23"},{"$f":"TODAY()-50","v":"2016-09-01"},300,{"$f":"IF(COUNTA('Журнал проектів'!$E9,'Журнал проектів'!$F9)<>2,\"\",DAYS360('Журнал проектів'!$E9,'Журнал проектів'!$F9,FALSE))","v":38},{"$f":"TODAY()-90","v":"2016-07-23"},{"$f":"TODAY()-44","v":"2016-09-07"},{"$f":"IFERROR(IF(ЖурналПроектів[Фактичні трудовитрати (у годинах)]=0,\"\",IF(ABS((ЖурналПроектів[[#This Row],[Фактичні трудовитрати (у годинах)]]-ЖурналПроектів[[#This Row],[Орієнтовні трудовитрати \n(у годинах)]])/ЖурналПроектів[[#This Row],[Орієнтовні трудовитрати \n(у годинах)]])>ВідсотокВиконання,1,0)),\"\")","v":0},310,{"$f":"IFERROR(IF(ЖурналПроектів[Фактична тривалість (у днях)]=0,\"\",IF(ABS((ЖурналПроектів[[#This Row],[Фактична тривалість (у днях)]]-ЖурналПроектів[[#This Row],[Орієнтовна тривалість (у днях)]])/ЖурналПроектів[[#This Row],[Орієнтовна тривалість (у днях)]])>ВідсотокВиконання,1,0)),\"\")","v":0},{"$f":"IF(COUNTA('Журнал проектів'!$I9,'Журнал проектів'!$J9)<>2,\"\",DAYS360('Журнал проектів'!$I9,'Журнал проектів'!$J9,FALSE))","v":44}]
[null,"Проект 6","Категорія 4","Працівник 4",{"$f":"TODAY()-60","v":"2016-08-22"},{"$f":"TODAY()-50","v":"2016-09-01"},500,{"$f":"IF(COUNTA('Журнал проектів'!$E10,'Журнал проектів'!$F10)<>2,\"\",DAYS360('Журнал проектів'!$E10,'Журнал проектів'!$F10,FALSE))","v":9},{"$f":"TODAY()-60","v":"2016-08-22"},{"$f":"TODAY()-45","v":"2016-09-06"},{"$f":"IFERROR(IF(ЖурналПроектів[Фактичні трудовитрати (у годинах)]=0,\"\",IF(ABS((ЖурналПроектів[[#This Row],[Фактичні трудовитрати (у годинах)]]-ЖурналПроектів[[#This Row],[Орієнтовні трудовитрати \n(у годинах)]])/ЖурналПроектів[[#This Row],[Орієнтовні трудовитрати \n(у годинах)]])>ВідсотокВиконання,1,0)),\"\")","v":0},510,{"$f":"IFERROR(IF(ЖурналПроектів[Фактична тривалість (у днях)]=0,\"\",IF(ABS((ЖурналПроектів[[#This Row],[Фактична тривалість (у днях)]]-ЖурналПроектів[[#This Row],[Орієнтовна тривалість (у днях)]])/ЖурналПроектів[[#This Row],[Орієнтовна тривалість (у днях)]])>ВідсотокВиконання,1,0)),\"\")","v":1},{"$f":"IF(COUNTA('Журнал проектів'!$I10,'Журнал проектів'!$J10)<>2,\"\",DAYS360('Журнал проектів'!$I10,'Журнал проектів'!$J10,FALSE))","v":14}]
[null,"Проект 7","Категорія 5","Працівник 1",{"$f":"TODAY()-44","v":"2016-09-07"},{"$f":"TODAY()-20","v":"2016-10-01"},750,{"$f":"IF(COUNTA('Журнал проектів'!$E11,'Журнал проектів'!$F11)<>2,\"\",DAYS360('Журнал проектів'!$E11,'Журнал проектів'!$F11,FALSE))","v":24},{"$f":"TODAY()-44","v":"2016-09-07"},{"$f":"TODAY()-15","v":"2016-10-06"},{"$f":"IFERROR(IF(ЖурналПроектів[Фактичні трудовитрати (у годинах)]=0,\"\",IF(ABS((ЖурналПроектів[[#This Row],[Фактичні трудовитрати (у годинах)]]-ЖурналПроектів[[#This Row],[Орієнтовні трудовитрати \n(у годинах)]])/ЖурналПроектів[[#This Row],[Орієнтовні трудовитрати \n(у годинах)]])>ВідсотокВиконання,1,0)),\"\")","v":0},790,{"$f":"IFERROR(IF(ЖурналПроектів[Фактична тривалість (у днях)]=0,\"\",IF(ABS((ЖурналПроектів[[#This Row],[Фактична тривалість (у днях)]]-ЖурналПроектів[[#This Row],[Орієнтовна тривалість (у днях)]])/ЖурналПроектів[[#This Row],[Орієнтовна тривалість (у днях)]])>ВідсотокВиконання,1,0)),\"\")","v":0},{"$f":"IF(COUNTA('Журнал проектів'!$I11,'Журнал проектів'!$J11)<>2,\"\",DAYS360('Журнал проектів'!$I11,'Журнал проектів'!$J11,FALSE))","v":29}]
[null,"Проект 8","Категорія 2","Працівник 1",{"$f":"TODAY()-39","v":"2016-09-12"},{"$f":"TODAY()","v":"2016-10-21"},450,{"$f":"IF(COUNTA('Журнал проектів'!$E12,'Журнал проектів'!$F12)<>2,\"\",DAYS360('Журнал проектів'!$E12,'Журнал проектів'!$F12,FALSE))","v":39},{"$f":"TODAY()-45","v":"2016-09-06"},{"$f":"TODAY()-5","v":"2016-10-16"},{"$f":"IFERROR(IF(ЖурналПроектів[Фактичні трудовитрати (у годинах)]=0,\"\",IF(ABS((ЖурналПроектів[[#This Row],[Фактичні трудовитрати (у годинах)]]-ЖурналПроектів[[#This Row],[Орієнтовні трудовитрати \n(у годинах)]])/ЖурналПроектів[[#This Row],[Орієнтовні трудовитрати \n(у годинах)]])>ВідсотокВиконання,1,0)),\"\")","v":0},430,{"$f":"IFERROR(IF(ЖурналПроектів[Фактична тривалість (у днях)]=0,\"\",IF(ABS((ЖурналПроектів[[#This Row],[Фактична тривалість (у днях)]]-ЖурналПроектів[[#This Row],[Орієнтовна тривалість (у днях)]])/ЖурналПроектів[[#This Row],[Орієнтовна тривалість (у днях)]])>ВідсотокВиконання,1,0)),\"\")","v":0},{"$f":"IF(COUNTA('Журнал проектів'!$I12,'Журнал проектів'!$J12)<>2,\"\",DAYS360('Журнал проектів'!$I12,'Журнал проектів'!$J12,FALSE))","v":40}]
[null,"Проект 9","Категорія 4","Працівник 1","2016-02-05","2016-06-09",250,{"$f":"IF(COUNTA('Журнал проектів'!$E13,'Журнал проектів'!$F13)<>2,\"\",DAYS360('Журнал проектів'!$E13,'Журнал проектів'!$F13,FALSE))","v":124},"2016-03-05","2016-05-05",{"$f":"IFERROR(IF(ЖурналПроектів[Фактичні трудовитрати (у годинах)]=0,\"\",IF(ABS((ЖурналПроектів[[#This Row],[Фактичні трудовитрати (у годинах)]]-ЖурналПроектів[[#This Row],[Орієнтовні трудовитрати \n(у годинах)]])/ЖурналПроектів[[#This Row],[Орієнтовні трудовитрати \n(у годинах)]])>ВідсотокВиконання,1,0)),\"\")","v":0},200,{"$f":"IFERROR(IF(ЖурналПроектів[Фактична тривалість (у днях)]=0,\"\",IF(ABS((ЖурналПроектів[[#This Row],[Фактична тривалість (у днях)]]-ЖурналПроектів[[#This Row],[Орієнтовна тривалість (у днях)]])/ЖурналПроектів[[#This Row],[Орієнтовна тривалість (у днях)]])>ВідсотокВиконання,1,0)),\"\")","v":1},{"$f":"IF(COUNTA('Журнал проектів'!$I13,'Журнал проектів'!$J13)<>2,\"\",DAYS360('Журнал проектів'!$I13,'Журнал проектів'!$J13,FALSE))","v":60}]

{"sheet":"Настроювання","index":1,"n_rows":10,"n_cols":3,"rows_kept":10}
[null,"Настроювання"]
[]
[]
[null,"Назва категорії","Ім’я працівника"]
[null,"Категорія 1","Працівник 1"]
[null,"Категорія 2","Працівник 2"]
[null,"Категорія 3","Працівник 3"]
[null,"Категорія 4","Працівник 4"]
[null,"Категорія 5","Працівник 5"]
[null,"Категорія 6","Працівник 6"]